bitfinex-derivatives/quotes_ETHF0:USTF0_20250816
["timestamp","ask_amount","ask_price","bid_price","bid_amount"]
[1755305573336,1.2566,4482.0,4481.9,1.5316]
[1755305573537,1.5109,4482.0,4481.9,1.5316]
[1755305573828,0.5662,4481.9,4481.6,0.5638]
[1755305574029,1.5109,4481.7,4481.6,0.9302]
[1755305574336,1.5109,4481.7,4481.6,1.5316]
[1755305574535,0.9447,4481.7,4481.6,1.97754]
[1755305574935,1.5109,4481.7,4481.6,1.5316]
[1755305575528,1.5109,4481.7,4481.3,7.76442565]
[1755305575529,0.589,4481.4,4481.3,7.93142565]
[1755305575835,1.5109,4481.4,4481.3,9.03332565]
[1755305576035,1.5109,4481.4,4481.3,1.2689]
[1755305576238,1.5109,4481.4,4481.3,1.5316]
[1755305576434,1.5109,4481.4,4481.3,1.1758]
[1755305576833,1.5109,4481.4,4481.3,1.5316]
[1755305577534,0.589,4481.4,4481.3,0.167]
[1755305577734,0.589,4481.4,4481.3,1.5316]
[1755305578137,1.5109,4481.4,4481.3,1.5316]
[1755305578638,1.5109,4481.4,4481.3,4.24121265]
[1755305578838,3.2078,4482.9,4481.9,0.9196]
[1755305579042,0.589,4482.4,4482.3,4.24121265]
[1755305579234,1.2566,4482.4,4482.3,4.24121265]
[1755305579741,0.589,4482.4,4482.3,4.68709265]
[1755305579937,0.589,4482.4,4482.3,4.24121265]
[1755305580141,1.5109,4482.4,4482.3,4.24121265]
[1755305580439,0.589,4482.6,4482.5,1.05785]
[1755305580742,0.5662,4482.9,4482.7,0.44583]
[1755305580942,1.5109,4482.9,4482.8,1.5316]
[1755305581236,0.3505,4483.4,4483.3,0.167]
[1755305581445,1.5109,4483.4,4483.3,0.9302]
[1755305581639,2.70961265,4484.5,4483.1,3.06541265]
[1755305581640,3.2078,4484.0,4483.9,0.4126]
[1755305581840,3.2078,4484.0,4483.9,1.0311]
[1755305582347,3.7968,4484.0,4483.4,1.06426]
[1755305582645,1.1552,4483.2,4483.1,0.44579]
[1755305583140,0.589,4483.2,4483.0,2.8933]
[1755305583341,1.1552,4482.5,4481.7,8.3730954]
[1755305583641,1.5109,4482.2,4482.1,1.0311]
[1755305583840,1.5109,4482.2,4482.1,1.2305]
[1755305584247,1.5109,4482.2,4482.1,1.5316]
[1755305584648,0.6624,4482.2,4482.1,1.5316]
[1755305584849,0.9219,4482.9,4482.2,0.3558]
[1755305585045,0.3119,4482.8,4482.2,0.6185]
[1755305585848,0.9009,4482.3,4481.9,0.44591]
[1755305586048,0.589,4482.3,4482.2,0.4126]
[1755305586249,0.589,4482.3,4482.2,0.7684]
[1755305586442,0.3505,4482.1,4482.0,0.2627]
[1755305586650,1.5109,4482.1,4482.0,0.2627]
[1755305587348,0.589,4481.8,4481.7,8.7856954]
[1755305587546,1.5109,4481.8,4481.7,8.7856954]
[1755305587852,1.5109,4481.8,4481.7,8.9850954]
[1755305588247,1.5109,4481.8,4481.7,9.2861954]
[1755305588454,0.9009,4481.8,4481.7,9.2861954]
[1755305588658,0.6624,4481.8,4481.7,9.2861954]
[1755305589049,0.9009,4481.8,4481.7,9.2861954]
[1755305589251,1.5109,4481.8,4481.7,9.2861954]
[1755305589644,0.9009,4481.8,4481.7,9.2861954]
[1755305590455,0.1923,4481.8,4481.7,9.7321254]
[1755305590653,0.3119,4482.1,4481.8,0.9196]
[1755305590851,0.589,4481.6,4481.5,0.9678]
[1755305591057,1.5109,4481.6,4481.5,1.2305]
[1755305591254,1.5109,4481.6,4481.5,1.5316]
[1755305591753,0.5662,4481.5,4481.4,0.4126]
[1755305591950,1.5109,4481.5,4481.4,1.5316]
[1755305592859,0.9219,4482.4,4481.4,1.35905]
[1755305593059,3.2078,4482.5,4481.5,0.6185]
[1755305593355,3.2078,4482.5,4482.1,0.4126]
[1755305593356,1.5109,4482.2,4482.1,0.4126]
[1755305593561,1.5109,4482.2,4482.1,1.2305]
[1755305593859,1.3527,4481.9,4481.7,7.9215954]
[1755305594163,3.2078,4482.5,4481.8,1.2305]
[1755305594349,0.9219,4482.4,4481.8,1.5316]
[1755305594554,0.3505,4481.9,4481.8,1.5316]
[1755305594755,0.6624,4481.9,4481.8,1.5316]
[1755305595054,0.3119,4482.3,4481.8,0.9131]
[1755305595259,1.5109,4482.2,4482.1,0.612]
[1755305595449,3.2078,4483.0,4482.1,1.5316]
[1755305595653,3.2078,4483.0,4482.6,0.44585]
[1755305595853,4.1087,4483.0,4482.9,0.612]
[1755305596055,4.7187,4483.0,4482.9,1.5316]
[1755305596457,0.9009,4483.0,4482.9,1.97742]
[1755305597459,0.9009,4483.0,4482.9,1.5316]
[1755305598069,3.5197,4484.1,4483.2,0.6185]
[1755305598261,4.7187,4484.1,4484.0,1.5316]
[1755305598654,0.3723,4483.7,4483.6,8.5252954]
[1755305598961,1.5648,4483.7,4483.6,8.9699954]
[1755305599267,0.6142,4483.7,4483.6,1.0122]
[1755305599459,1.5648,4483.7,4483.6,1.2154]
[1755305599765,1.5648,4483.7,4483.6,1.5223]
[1755305599959,0.2058,4483.7,4483.6,1.5223]
[1755305600562,0.6746,4483.7,4483.6,1.5223]
[1755305601665,1.5648,4483.7,4483.6,1.5223]
[1755305602168,1.5648,4483.7,4483.6,0.4025]
[1755305602961,0.6483,4484.4,4483.6,1.0122]
[1755305603264,0.5081,4483.7,4483.6,1.5223]
[1755305603563,3.2078,4484.6,4483.3,4.91448143]
[1755305603564,1.5648,4483.4,4483.3,4.91448143]
[1755305603762,0.6746,4483.6,4483.5,0.3642]
[1755305603967,0.6746,4483.6,4483.5,1.5223]
[1755305606467,0.9165,4483.6,4483.5,1.5223]
[1755305606669,1.5648,4483.6,4483.5,4.22916114]
[1755305607168,0.5594,4484.1,4483.5,3.31256114]
[1755305607470,0.5594,4484.1,4483.3,3.39135739]
[1755305607471,1.5648,4484.1,4484.0,1.2154]
[1755305607970,1.5648,4484.1,4484.0,1.0122]
[1755305608369,1.5648,4484.1,4484.0,0.4025]
[1755305609768,1.5648,4484.1,4483.9,2.70686114]
[1755305609970,1.3077,4484.0,4483.9,2.70686114]
[1755305610171,1.5648,4484.0,4483.9,2.70686114]
[1755305610567,0.6142,4484.0,4483.6,0.44574]
[1755305610771,1.5648,4483.7,4483.6,4.67490114]
[1755305611267,0.9165,4483.7,4483.6,4.36800114]
[1755305611472,0.6746,4483.7,4483.6,4.67490114]
[1755305611973,0.6746,4483.7,4483.6,4.22916114]
[1755305612870,1.5648,4483.7,4483.6,4.22916114]
[1755305613967,0.3023,4484.3,4483.6,3.61946114]
[1755305614169,1.0206,4484.2,4484.1,0.4025]
[1755305614370,1.5648,4484.2,4484.1,1.0122]
[1755305615567,0.8713,4484.2,4484.0,2.70686114]
[1755305615773,0.6142,4484.2,4484.1,1.2154]
[1755305616270,1.5648,4484.2,4484.1,1.0122]
[1755305616869,1.5648,4484.2,4484.1,0.4025]
[1755305617173,1.5648,4484.2,4484.1,0.7732]
[1755305617570,1.5648,4484.2,4484.1,1.0122]
[1755305619268,1.5648,4484.2,4484.1,0.4025]
[1755305619773,1.5648,4484.2,4484.1,3.92226114]
[1755305619974,1.5648,4484.2,4484.1,4.22916114]
[1755305626571,1.5648,4484.2,4484.1,0.6057]
[1755305626771,1.5648,4484.2,4484.1,0.4025]
[1755305627272,1.5648,4484.2,4484.1,1.0122]
[1755305627478,0.6142,4484.2,4484.1,0.6057]
[1755305627778,1.5648,4484.2,4484.1,0.6057]
[1755305628184,1.5648,4484.2,4484.1,1.5223]
[1755305629882,0.8716,4484.0,4483.9,3.39786114]
[1755305630079,1.531,4484.0,4483.9,3.77456114]
[1755305630279,1.531,4484.0,4483.9,4.26876114]
[1755305631378,0.613,4483.6,4483.5,1.71125]
[1755305631579,1.531,4483.6,4483.5,4.71451114]
[1755305632078,0.8992,4483.6,4483.5,4.71451114]
[1755305632278,0.6462,4483.6,4483.5,4.71451114]
[1755305632586,0.4846,4483.6,4483.5,4.71451114]
[1755305632883,0.6462,4483.6,4483.5,4.26876114]
[1755305633488,0.4846,4483.6,4483.5,4.26876114]
[1755305634684,0.1984,4483.6,4483.5,4.26876114]
[1755305634887,0.6318,4483.9,4483.5,4.26876114]
[1755305634888,0.8992,4484.2,4484.1,0.6322]
[1755305635089,1.531,4484.2,4484.1,1.5619]
[1755305636084,0.613,4484.2,4484.1,1.2655]
[1755305636282,1.531,4484.2,4484.1,1.5619]
[1755305637790,1.531,4484.2,4484.1,1.0677]
[1755305641386,0.36,4484.3,4484.2,1.11419]
[1755305641693,1.65870585,4484.3,4484.2,0.9286]
[1755305641991,1.65870585,4484.3,4484.2,1.5619]
[1755305642892,1.65870585,4484.3,4484.2,0.4344]
[1755305643191,1.531,4484.0,4483.9,0.4344]
[1755305644489,1.531,4484.0,4483.8,2.70686114]
[1755305644789,0.8992,4484.0,4483.8,2.70686114]
[1755305645095,1.531,4483.9,4483.8,3.77456114]
[1755305645793,3.2078,4484.6,4484.4,0.4344]
[1755305645794,1.531,4484.5,4484.4,0.4344]
[1755305646091,1.17412465,4484.5,4484.4,1.2655]
[1755305646293,1.65872465,4484.5,4484.4,1.5619]
[1755305646891,0.6462,4483.9,4483.8,0.9286]
[1755305647095,1.531,4483.9,4483.8,0.9286]
[1755305647392,1.531,4483.9,4483.8,1.5619]
[1755305647794,0.6462,4483.9,4483.8,1.5619]
[1755305648491,0.2586,4484.3,4483.8,0.8888]
[1755305648694,0.6462,4484.1,4484.0,3.33906114]
[1755305648889,1.0796,4484.5,4484.4,0.1743]
[1755305649088,1.531,4484.5,4484.4,1.5619]
[1755305649393,1.531,4484.5,4484.4,4.26876114]
[1755305650294,1.531,4484.5,4484.4,3.97236114]
[1755305651295,1.531,4484.5,4484.4,0.4344]
[1755305651494,0.5448,4484.4,4484.1,2.96346114]
[1755305651692,0.6318,4484.4,4484.1,3.34016114]
[1755305651894,0.613,4484.3,4484.2,0.8111]
[1755305652092,0.613,4484.3,4484.2,1.2655]
[1755305652496,1.531,4484.3,4484.2,1.2655]
[1755305652689,1.531,4484.3,4484.2,1.5619]
[1755305653196,1.531,4484.3,4484.2,1.0677]
[1755305653595,0.613,4483.8,4483.7,3.33906114]
[1755305653788,1.531,4483.8,4483.7,3.63546114]
[1755305654187,1.531,4483.8,4483.7,1.0677]
[1755305654400,1.531,4483.7,4483.6,2.70686114]
[1755305654691,1.531,4483.7,4483.0,0.4458]
[1755305654692,0.918,4483.3,4483.0,0.553]
[1755305654895,1.531,4483.1,4483.0,1.5619]
[1755305655291,0.6462,4483.1,4483.0,1.5619]
[1755305655593,0.2862,4483.7,4483.1,0.4458]
[1755305655793,0.36,4483.4,4483.3,3.39786114]
[1755305656096,0.6462,4483.4,4483.3,4.26876114]
[1755305656598,1.278,4483.4,4483.3,4.26876114]
[1755305656792,1.278,4483.4,4483.3,3.77456114]
[1755305656793,1.531,4483.4,4483.3,3.77456114]
[1755305656994,1.531,4483.4,4483.3,2.70686114]
[1755305657194,1.531,4483.4,4483.3,2.88116114]
[1755305657401,1.531,4483.4,4483.3,3.97236114]
[1755305657595,0.2862,4484.0,4483.3,3.97236114]
[1755305657790,0.7878,4483.9,4483.7,2.70686114]
[1755305658102,0.9862,4483.2,4483.1,3.97236114]
[1755305658400,1.5216,4483.2,4483.1,4.26456114]
[1755305660093,1.5216,4483.2,4483.1,3.97236114]
[1755305660399,1.5216,4483.2,4483.1,4.26456114]
[1755305662096,1.5216,4483.2,4482.9,3.2078]
[1755305662400,0.4838,4482.8,4482.7,4.26874218]
[1755305662600,0.2847,4483.1,4483.0,0.6113]
[1755305662798,0.6538,4483.1,4483.0,1.5165]
[1755305664503,3.4925,4483.6,4483.5,1.5165]
[1755305664801,3.4925,4483.6,4483.5,4.22336114]
[1755305666094,3.6916,4483.6,4483.5,4.22336114]
[1755305666494,3.2078,4483.6,4483.5,4.22336114]
[1755305666897,0.3555,4484.1,4483.6,0.44575]
[1755305667089,0.6538,4484.0,4483.9,3.31816114]
[1755305667290,0.6538,4484.0,4483.9,4.22336114]
[1755305667500,0.3691,4484.0,4483.9,4.22336114]
[1755305668593,0.6538,4484.3,4484.2,0.6113]
[1755305668794,0.6538,4484.3,4484.2,1.5165]
[1755305669195,3.2078,4484.5,4484.4,0.44567]
[1755305669505,1.26,4484.6,4484.5,1.5165]
[1755305670700,1.5114,4484.6,4484.5,1.5165]
[1755305671096,3.2078,4485.0,4484.6,0.5351]
[1755305671298,4.1838,4485.0,4484.9,1.0257]
[1755305671602,4.1838,4485.0,4484.9,0.4127]
[1755305671804,4.7192,4485.0,4484.9,0.4127]
[1755305672303,4.7192,4485.0,4484.9,0.2479]
[1755305672502,4.7192,4485.0,4484.6,3.61206114]
[1755305672703,0.6205,4484.8,4484.7,1.0257]
[1755305672899,1.5114,4484.8,4484.7,1.0257]
[1755305673097,1.5114,4484.8,4484.7,1.2243]
[1755305673298,1.5114,4484.8,4484.7,1.5165]
[1755305673504,1.5114,4484.8,4484.7,1.2243]
[1755305674204,1.1559,4484.8,4484.7,1.2243]
[1755305674404,1.5114,4484.8,4484.7,1.5165]
[1755305674805,1.5114,4484.8,4484.7,1.2243]
[1755305676796,0.2847,4484.8,4484.6,2.70686114]
[1755305676998,3.5769,4485.5,4485.4,0.1648]
[1755305677301,4.7192,4485.5,4485.4,3.11956114]
[1755305677498,4.7192,4485.5,4485.4,3.73256114]
[1755305678297,4.7192,4485.5,4485.4,4.21636114]
[1755305678501,3.8616,4485.5,4485.4,4.21636114]
[1755305679503,0.6538,4485.5,4485.4,4.21636114]
[1755305680599,3.2078,4486.0,4485.4,4.21636114]
[1755305680806,0.3691,4485.6,4485.5,1.2243]
[1755305681007,1.5114,4485.6,4485.5,1.2243]
[1755305681209,1.5114,4485.6,4485.5,1.0257]
[1755305681408,1.5114,4485.6,4485.5,0.7828]
[1755305681606,1.5114,4485.6,4485.1,0.2852]
[1755305681607,0.3691,4485.1,4485.0,2.70686114]
[1755305681815,1.5114,4485.1,4485.0,2.70686114]
[1755305682106,3.2078,4485.5,4484.7,3.8191]
[1755305682107,0.6205,4484.8,4484.7,3.8191]
[1755305682310,1.5114,4484.8,4484.7,4.1043]
[1755305682701,1.5114,4484.8,4484.7,4.7173]
[1755305683206,1.5114,4484.8,4484.7,7.42416114]
[1755305683806,1.5114,4484.8,4484.7,7.13896114]
[1755305684007,1.5114,4484.8,4484.7,7.42416114]
[1755305685105,1.5114,4484.8,4484.7,4.21636114]
[1755305685311,0.1812202,4487.3,4484.0,3.8191]
[1755305685312,0.6205,4484.1,4484.0,3.8191]
[1755305685604,1.5114,4484.1,4484.0,7.42416114]
[1755305686011,1.5114,4484.1,4484.0,4.21636114]
[1755305688217,0.2847,4484.8,4484.0,3.31816114]
[1755305688415,1.2414,4484.7,4484.6,0.417]
[1755305689017,1.5193,4484.7,4484.6,0.417]
[1755305689218,0.605,4484.5,4484.4,3.31846114]
[1755305689420,1.5193,4484.5,4484.4,2.70686114]
[1755305690417,1.5193,4484.5,4484.4,3.73546114]
[1755305691221,1.5193,4484.5,4484.4,4.19586114]
[1755305694119,3.2078,4485.0,4484.4,4.19586114]
[1755305694326,0.3626,4485.0,4484.9,3.91526114]
[1755305694526,0.6405,4485.0,4484.9,0.5968]
[1755305694719,0.8533,4485.2,4485.1,0.2806]
[1755305694915,0.4662,4485.2,4485.1,0.7171]
[1755305695120,1.5193,4485.2,4485.1,1.489]
[1755305695430,0.6405,4485.2,4485.1,4.19586114]
[1755305695722,0.2779,4485.4,4485.3,1.1196]
[1755305695926,0.8829,4485.9,4485.8,0.5968]
[1755305696226,1.65399581,4485.9,4485.8,0.417]
[1755305696522,1.1322,4485.7,4485.6,0.6116]
[1755305696726,0.73969581,4485.7,4485.4,0.2806]
[1755305696927,1.331,4485.6,4485.5,1.0286]
[1755305697123,1.5193,4485.6,4485.5,0.417]
[1755305697329,1.5193,4484.9,4484.8,4.64148114]
[1755305697721,1.5193,4484.9,4484.8,4.19586114]
[1755305698424,0.6405,4484.9,4484.8,4.19586114]
[1755305699431,1.5193,4484.9,4484.8,4.19586114]
[1755305700332,1.5193,4484.9,4484.4,2.70686114]
[1755305700626,1.5193,4484.6,4484.5,0.7864]
[1755305700834,1.5193,4484.6,4484.5,1.489]
[1755305701128,1.5193,4484.6,4484.5,1.2084]
[1755305701325,0.605,4484.6,4484.4,2.70686114]
[1755305701529,1.5193,4484.5,4484.4,2.70686114]
[1755305701729,0.605,4484.5,4484.0,2.70686114]
[1755305701930,0.605,4484.3,4484.2,1.0286]
[1755305702230,1.5193,4484.3,4484.2,1.0286]
[1755305702530,1.5193,4484.3,4484.2,1.2084]
[1755305702934,1.5193,4484.3,4484.2,1.489]
[1755305703327,1.5193,4484.3,4484.2,1.0286]
[1755305703528,1.5193,4484.2,4484.1,0.417]
[1755305703833,1.5193,4484.2,4484.1,1.0286]
[1755305704024,1.5193,4484.2,4484.1,1.489]
[1755305706127,1.5193,4484.2,4484.0,2.70686114]
[1755305706328,0.9143,4484.8,4483.6,3.2078]
[1755305706528,0.605,4483.5,4483.4,3.12386114]
[1755305706729,1.5193,4483.5,4483.4,3.73546114]
[1755305707135,1.5193,4483.5,4483.4,4.19586114]
[1755305708635,1.5193,4483.5,4483.4,3.91526114]
[1755305708834,1.5193,4483.5,4483.4,4.19586114]
[1755305709331,1.5193,4483.5,4483.4,2.70686114]
[1755305709531,0.605,4483.2,4483.1,3.30366114]
[1755305709731,1.5193,4483.2,4483.1,3.91526114]
[1755305710336,1.5193,4483.2,4483.1,4.19586114]
[1755305710637,1.5193,4483.2,4483.1,3.73546114]
[1755305711138,0.605,4483.2,4483.0,3.2078]
[1755305711433,3.2078,4483.9,4483.0,3.2078]
[1755305711434,1.5193,4483.1,4483.0,4.2364]
[1755305711939,1.5193,4482.5,4482.4,3.2078]
[1755305712136,1.5193,4482.5,4482.4,7.12306114]
[1755305712334,0.6405,4482.9,4482.8,1.2084]
[1755305712630,0.6405,4482.9,4482.8,4.19586114]
[1755305712837,0.6364,4483.2,4482.8,4.19586114]
[1755305713034,0.1883,4482.9,4482.8,3.30366114]
[1755305713230,3.2078,4483.4,4482.8,3.12386114]
[1755305713434,0.9143,4483.3,4482.8,3.12386114]
[1755305713635,1.2769,4482.9,4482.8,3.58426114]
[1755305713934,1.5193,4482.9,4482.8,0.417]
[1755305714139,1.5193,4482.9,4482.8,1.2084]
[1755305714337,1.5193,4482.9,4482.8,1.489]
[1755305714932,0.8829,4482.9,4482.8,1.489]
[1755305717136,1.5193,4482.9,4482.8,1.489]
[1755305717835,0.9143,4482.8,4481.9,3.8194]
[1755305718040,1.5193,4482.0,4481.9,1.489]
[1755305718236,1.5193,4482.0,4481.9,4.19586114]
[1755305719236,1.5193,4482.0,4481.9,0.417]
[1755305719742,1.5193,4482.0,4481.4,3.2078]
[1755305719934,0.61,4481.5,4481.4,6.49686114]
[1755305720132,1.5414,4481.5,4481.4,6.76846114]
[1755305720529,1.5414,4481.5,4481.4,7.37926114]
[1755305721131,1.5414,4481.5,4481.4,3.89986114]
[1755305721532,1.5414,4481.5,4481.4,4.17146114]
[1755305721731,1.5414,4481.5,4481.4,3.89986114]
[1755305721937,1.5414,4481.5,4481.4,2.70686114]
[1755305722137,0.3601,4481.2,4481.1,2.70686114]
[1755305722340,0.3601,4481.2,4480.5,0.5822]
[1755305722341,0.61,4480.6,4480.5,0.5822]
[1755305722542,1.1536,4480.6,4480.5,3.89986114]
[1755305722838,1.5414,4480.6,4480.5,0.1795]
[1755305723044,1.1536,4480.2,4479.2,0.2486]
[1755305723239,0.61,4479.3,4479.2,0.6513]
[1755305723440,1.5414,4479.3,4479.2,0.6513]
[1755305724040,1.2833,4478.7,4478.0,3.2078]
[1755305724339,1.2833,4478.2,4478.1,1.193]
[1755305724845,1.5414,4478.2,4478.1,0.6513]
[1755305725045,1.5414,4477.9,4477.8,0.6513]
[1755305725245,0.61,4477.7,4477.6,0.2486]
[1755305725446,1.5414,4477.7,4477.6,0.2486]
[1755305725645,1.5414,4477.7,4477.0,0.2486]
[1755305725846,0.8955,4477.1,4477.0,1.193]
[1755305726144,1.5414,4477.1,4477.0,0.6513]
[1755305726650,1.5414,4477.1,4477.0,0.2486]
[1755305726845,0.61,4476.5,4476.4,0.6513]
[1755305727142,1.2833,4476.5,4476.1,0.6108]
[1755305727343,0.61,4476.2,4476.1,0.7649]
[1755305727643,0.9978,4476.2,4476.1,0.34304896]
[1755305727841,1.2833,4476.2,4476.1,0.4027]
[1755305728041,1.2833,4476.2,4476.1,1.3855]
[1755305728446,0.2855,4476.9,4476.1,0.7747]
[1755305728641,0.4762,4476.9,4476.8,1.3855]
[1755305728842,0.4762,4476.9,4476.6,3.2078]
[1755305728843,0.9978,4476.9,4476.3,0.2486]
[1755305729149,0.61,4476.8,4476.7,0.6513]
[1755305729346,3.2078,4477.5,4476.7,1.193]
[1755305729537,0.2855,4477.4,4476.8,0.8033]
[1755305729850,3.2078,4477.5,4476.6,3.2078]
[1755305729851,1.5414,4476.8,4476.7,0.2486]
[1755305730445,0.864,4477.4,4477.3,0.5822]
[1755305730641,0.9978,4477.8,4477.7,0.4027]
[1755305730845,3.3985,4478.3,4478.2,0.1603]
[1755305731044,0.4762,4478.3,4478.2,1.3855]
[1755305732942,0.61,4478.3,4478.2,0.6513]
[1755305733142,1.2833,4478.3,4478.2,0.6513]
[1755305733345,3.4933,4479.0,4478.3,0.2486]
[1755305733538,4.1033,4479.0,4478.9,0.1603]
[1755305733746,4.1033,4479.0,4478.9,1.3855]
[1755305733947,3.4933,4479.7,4479.0,0.6108]
[1755305734246,4.4911,4479.7,4479.6,1.0135]
[1755305734744,3.2078,4479.7,4479.6,1.193]
[1755305734951,4.2412,4479.7,4479.6,1.3855]
[1755305735151,4.4911,4479.7,4479.6,1.193]
[1755305735348,0.6733,4479.6,4478.9,0.8033]
[1755305735543,0.1907,4479.1,4479.0,0.5884]
[1755305735746,0.6459,4479.6,4479.1,0.44619]
[1755305735944,1.5414,4479.6,4479.5,0.4089]
[1755305736950,0.6456,4479.6,4479.5,1.3855]
[1755305737248,1.0334,4479.6,4479.5,1.3855]
[1755305737451,0.6456,4479.6,4479.5,1.3855]
[1755305737641,1.0334,4479.6,4479.5,1.193]
[1755305737842,1.0334,4479.6,4479.5,1.3855]
[1755305738342,3.2078,4479.7,4479.5,1.3855]
[1755305738550,4.4911,4479.7,4479.6,1.0135]
[1755305738749,4.4911,4479.7,4479.6,1.193]
[1755305739050,4.4911,4479.7,4479.6,1.3855]
[1755305739548,0.61,4478.8,4478.7,0.2486]
[1755305739748,0.5436,4478.7,4478.4,0.2486]
[1755305740053,1.2833,4478.4,4478.3,0.4027]
[1755305740251,1.2833,4478.4,4478.3,1.0135]
[1755305740448,1.2833,4478.4,4478.3,1.193]
[1755305741647,0.8955,4478.2,4477.6,0.2486]
[1755305741953,1.2833,4477.9,4477.8,1.0135]
[1755305742250,0.8955,4477.9,4477.8,1.3855]
[1755305742551,0.3878,4478.3,4477.5,3.65415]
[1755305742853,0.2855,4477.9,4477.6,1.02854]
[1755305743054,0.4762,4478.2,4478.1,0.5822]
[1755305743256,0.4762,4478.2,4478.1,1.3855]
[1755305743854,0.6456,4478.2,4478.1,0.6513]
[1755305744049,0.4762,4478.2,4478.1,1.3855]
[1755305744444,1.5414,4478.2,4478.1,0.491]
[1755305744757,1.5414,4477.9,4477.8,0.2486]
[1755305745257,1.5414,4477.9,4477.8,0.4089]
[1755305745453,0.1907,4477.2,4477.1,0.5884]
[1755305745758,0.4762,4477.2,4477.1,1.3855]
[1755305746057,0.2855,4477.6,4477.1,1.3855]
[1755305746352,1.0334,4477.5,4477.4,1.193]
[1755305746557,1.2833,4477.5,4477.4,1.193]
[1755305746856,1.5414,4477.5,4477.4,1.0135]
[1755305747349,1.5414,4477.5,4476.8,3.2078]
[1755305747350,1.2833,4477.5,4476.8,3.2078]
[1755305747550,1.2833,4477.5,4477.4,1.0135]
[1755305747746,1.2559,4477.5,4476.8,3.2078]
[1755305747956,1.2833,4476.9,4476.8,4.2213]
[1755305748556,1.2833,4476.9,4476.8,4.585]
[1755305749356,1.2833,4476.9,4476.8,4.2213]
[1755305749657,0.279,4477.4,4477.3,0.6121]
[1755305749853,0.279,4477.4,4477.3,1.4217]
[1755305750054,0.4539,4477.4,4477.3,1.4217]
[1755305750250,0.4539,4477.4,4476.8,3.2078]
[1755305750456,0.6275,4476.9,4476.8,1.4217]
[1755305750656,0.4539,4476.9,4476.8,1.4217]
[1755305750956,0.279,4477.1,4476.9,0.1842]
[1755305751154,0.4539,4477.1,4477.0,1.4217]
[1755305751554,0.279,4476.8,4476.1,0.8096]
[1755305751748,1.49282883,4476.7,4476.6,0.6737]
[1755305752260,0.8512,4477.1,4476.3,0.1842]
[1755305752448,0.1749,4476.5,4476.4,1.2375]
[1755305752653,0.4539,4476.5,4476.4,1.4217]
[1755305753262,0.1749,4476.5,4476.4,1.4217]
[1755305753558,0.4539,4476.7,4476.6,0.1847]
[1755305753753,0.4539,4476.7,4476.6,1.4217]
[1755305753954,0.279,4477.5,4477.3,0.4305]
[1755305754156,0.1749,4477.5,4477.4,1.4217]
[1755305754350,1.57869071,4477.5,4477.4,1.4217]
[1755305754758,1.85769071,4477.5,4477.4,1.4217]
[1755305755058,3.2078,4477.6,4477.4,1.4217]
[1755305755258,3.2078,4477.6,4477.5,1.4217]
[1755305755453,3.80627129,4477.6,4477.5,1.4217]
[1755305755851,0.4526,4478.1,4478.0,0.175]
[1755305756054,1.85764804,4478.1,4478.0,1.4217]
[1755305756261,1.85764804,4478.1,4478.0,1.2375]
[1755305756956,2.11894804,4478.1,4478.0,1.0528]
[1755305757260,1.1042,4478.0,4477.9,0.175]
[1755305757463,2.11894804,4478.0,4477.9,0.6737]
[1755305757662,2.11894804,4478.0,4477.9,1.0528]
[1755305757860,2.11894804,4478.0,4477.9,0.4213]
[1755305758162,2.11894804,4478.0,4477.9,0.6737]
[1755305758358,2.11894804,4478.0,4477.9,1.0528]
[1755305759364,1.5205,4478.0,4477.9,1.0528]
[1755305759865,1.2592,4478.0,4477.9,1.4217]
[1755305760465,1.2592,4478.0,4477.6,0.44634]
[1755305760466,3.4868,4478.3,4478.0,0.6254]
[1755305760764,4.467,4478.8,4478.7,1.2375]
[1755305761064,5.20449685,4478.8,4478.7,1.2375]
[1755305761366,1.99669685,4478.8,4478.7,1.2375]
[1755305762261,1.85600039,4478.8,4478.7,1.2375]
[1755305762464,2.11730039,4478.8,4478.4,0.3791]
[1755305762665,1.5205,4478.6,4478.5,0.2463]
[1755305762866,1.5205,4478.6,4478.5,0.6737]
[1755305763061,1.5205,4478.6,4478.5,1.0528]
[1755305763468,0.9306,4479.2,4478.0,3.83829]
[1755305763663,1.2592,4478.2,4478.0,3.2078]
[1755305763970,0.6763,4478.1,4478.0,0.4274]
[1755305764158,0.8512,4478.1,4478.0,0.6737]
[1755305764359,0.3485,4478.1,4478.0,1.2375]
[1755305764563,0.6275,4478.1,4478.0,1.4217]
[1755305764861,0.8689,4478.1,4478.0,1.4217]
[1755305765057,0.4539,4478.1,4478.0,1.4217]
[1755305765662,0.6275,4478.1,4478.0,1.4217]
[1755305766065,1.2592,4478.1,4478.0,1.2375]
[1755305766364,0.8689,4477.5,4477.4,3.8199]
[1755305766570,1.2592,4477.5,4477.4,3.8199]
[1755305766771,1.2592,4477.5,4477.4,4.4453]
[1755305767070,1.5205,4477.5,4477.4,4.4453]
[1755305767770,1.5205,4477.5,4477.4,3.8815]
[1755305768372,1.5205,4477.5,4477.4,4.2606]
[1755305768568,1.5205,4477.5,4476.9,0.2463]
[1755305768768,0.8689,4477.0,4476.9,0.8584]
[1755305768969,1.5205,4477.0,4476.9,1.0528]
[1755305769371,1.2592,4477.0,4476.9,1.4217]
[1755305770469,1.1302,4477.0,4476.9,0.6737]
[1755305770670,1.5205,4477.0,4476.9,0.6737]
[1755305770973,1.5205,4477.0,4476.9,1.0528]
[1755305772273,0.8429,4476.9,4476.8,0.4274]